Cogmind - Beta 16 @@@ ROGUE MODE // 2025.12.23 @ 11:02:52 Player: Dosh Result: Destroyed by D-53 Grenadier with Mini Grenade Launcher Performance ------------- Evolutions (0) 0 Regions Visited (2) 400 Robots Destroyed (26) 130 Value Destroyed (794) 794 Prototype IDs (0) 0 Alien Tech Used (0) 0 Bonus (0) 0 TOTAL SCORE: 1324 Bonus ------- None Cogmind --------- Core Integrity 0/250 Matter 171/300 Energy 100/100 System Corruption 1% Temperature Cool (0) Movement Treading (240) Ox1 Location -10/Mines Parts ------- > --- POWER (1) -------- (None) > --- PROPULSION (2) --- Light Treads > --- UTILITY (2) ------ Large Storage Unit > --- WEAPON (2) ------- Assault Rifle Autogun > --- INVENTORY (15) --- Light Ion Engine Light Nuclear Core Light Treads Light Treads Improved Heat Sink High-capacity Storage Unit Authchip [R/NC] Light Assault Rifle Autogun Grenade Launcher Datajack Peak State ------------ > --- POWER ------------ Ion Engine > --- PROPULSION ------- Light Treads Light Treads > --- UTILITY ---------- Large Storage Unit Visual Processing Unit > --- WEAPON ----------- Autogun Autogun > --- INVENTORY -------- Light Ion Engine Light Treads Light Treads Light Treads Improved Heat Sink High-capacity Storage Unit Light Armor Plating Authchip [R/NC] Assault Rifle Light Assault Rifle Autogun Autogun Grenade Launcher [Rating: 12] Favorites ----------- Power Ion Engine Engine Ion Engine Propulsion Light Treads Treads Light Treads Utility Visual Processing Unit Storage Large Storage Unit Processor Visual Processing Unit Protection Light Armor Plating Weapon Autogun Ballistic Gun Autogun Launcher Grenade Launcher Build | -11 -10 -10 ------- Run | Yrd Mat Min Slots Evolved . | . . . Power . | . . . Propulsion . | . . . Utility . | . . . Weapon . | . . . Parts Attached 18 | 6 6 6 Power 4 | 1 2 1 Engine 4 | 1 2 1 Core . | . . . Reactor . | . . . Propulsion 3 | 2 . 1 Treads 3 | 2 . 1 Leg . | . . . Wheel . | . . . Hover . | . . . Flight . | . . . Utility 4 | 1 2 1 Device . | . . . Storage 2 | 1 1 . Processor 1 | . 1 . Hackware . | . . . Protection 1 | . . 1 Artifact . | . . . Weapon 7 | 2 2 3 Energy Gun . | . . . Energy Cannon . | . . . Ballistic Gun 6 | 2 2 2 Ballistic Cannon . | . . . Launcher 1 | . . 1 Special Weapon . | . . . Impact Weapon . | . . . Slashing Weapon . | . . . Piercing Weapon . | . . . Special Melee Weapon . | . . . Unidentified Prototypes . | . . . Parts Lost 8 | . 2 6 Power 3 | . 1 2 Propulsion 2 | . . 2 Utility 1 | . . 1 Weapon 2 | . 1 1 Highest Loss Streak 5 | . 1 5 To Critical Strikes . | . . . Average Backups 9 | . 8 14 Power 1 | . . 2 Propulsion 1 | . 1 2 Utility 2 | . 2 3 Weapon 3 | . 4 3 Tool/Special . | . . . Unused Backups 9 | . 1 8 Power 1 | . . 1 Propulsion 2 | . . 2 Utility 5 | . 1 4 Weapon . | . . . Tool/Special 1 | . . 1 Average Slot Usage (%) 99 | . 99 99 Engine 13 | . 13 13 Treads 27 | . 28 27 Storage 14 | . 14 14 Processor 13 | . 13 13 Ballistic Gun 27 | . 28 26 Peak Build Rating 12 | 6 12 11 Average Rating 10 | 4 10 10 On Entrance 5 | . 6 11 Avg Prop Armor Cover (%) . | . . . Naked Turns . | . . . Heaviest Build 33 | 13 31 33 Greatest Support 40 | 40 40 40 Greatest Overweight (x) 1 | . . 1 Average Overweight (x) . | . . . Largest Inventory Capacity 15 | 8 15 15 Average Capacity 11 | 6 10 15 Most Carried 15 | 1 14 15 Average Carried 9 | . 8 14 Final Capacity 15 | 8 15 15 Final Carried 14 | 1 14 11 Class Distribution -------------------- 100% | Mutant Dominant Class ---------------- Mutant | -10/Materials Mutant | -10/Mines Resources | -11 -10 -10 ----------- Run | Yrd Mat Min Matter Collected 931 | 226 585 120 Remotely . | . . . Salvage Created 953 | . 733 220 Parts 58 | . 43 15 Haulers Intercepted 2 | . 2 . Recyclers Shooed 1 | . . 1 Parts Field Recycled . | . . . Retrieved Matter . | . . . Parts Self-Destructed . | . . . Prevented . | . . . Parts Restored . | . . . Kills | -11 -10 -10 ------- Run | Yrd Mat Min Combat Hostiles Destroyed 20 | . 13 7 Guns 19 | . 13 6 AOE 1 | . . 1 Classes Destroyed 7 | . 5 2 Worker 2 | . 2 . Hauler 2 | . 2 . Operator 1 | . 1 . Watcher 2 | . 2 . Grunt 18 | . 13 5 Demolisher 1 | . . 1 Assembled 1 | . . 1 Best Kill Streak 5 | . 5 2 Combat Bots Only 2 | . 2 2 Max Kills in Single Turn 2 | . 2 1 Gunslinging . | . . . Exploded 1 | . . 1 Melee . | . . . Uniques/NPCs Destroyed . | . . . Combat | -11 -10 -10 -------- Run | Yrd Mat Min Hostile Shots Fired 106 | . 41 65 Missed 22 | . 6 16 Hits 84 | . 35 49 Projectile 84 | . 35 49 AOE 7 | . . 7 Critical Strikes 1 | . . 1 Damage Taken 1266 | . 445 821 Core 255 | . 91 164 Absorbed by Shields . | . . . Core Remaining (%) 100 | 100 . . Volleys Fired 92 | . 63 29 Largest 2 | . 2 2 Hottest 46 | . 46 43 Shots Fired 181 | . 126 55 Gun 178 | . 126 52 Cannon . | . . . Launcher 3 | . . 3 Special . | . . . Kinetic 178 | . 126 52 Thermal . | . . . Explosive 3 | . . 3 Electromagnetic . | . . . Robot Hit Streak 15 | . 15 6 Robot Miss Streak 4 | . 4 3 Penetration Max . | . . . Secondary Targets 2 | . . 2 Max Gunslinging Chain 1 | . . 1 Shots Hit Robots 122 | . 85 37 Core Hits 52 | . 30 22 Critical Kills . | . . . Critical Parts Destroyed 3 | . 3 . Critical Strikes 3 | . 3 . Destroy 3 | . 3 . Melee Attacks . | . . . Impact . | . . . Slashing . | . . . Piercing . | . . . Sneak Attacks . | . . . Combat Hostiles . | . . . Follow-up Attacks . | . . . Damage Inflicted 1945 | . 1284 661 Guns 1774 | . 1284 490 Cannons . | . . . Explosions 170 | . . 170 Melee . | . . . Ramming 1 | . . 1 Kinetic 1774 | . 1284 490 Thermal . | . . . Explosive 170 | . . 170 Electromagnetic . | . . . Impact . | . . . Slashing . | . . . Piercing . | . . . Highest Corruption 1 | . 1 1 Average Corruption 1 | . 1 1 Corruption Purged . | . . . Corruption Blocked . | . . . Effects 8 | . 5 3 Message Errors 2 | . 2 . Heat Flow Errors 3 | . 2 1 Energy Discharges 1 | . . 1 Data Loss (major) 2 | . 1 1 Overload Shots . | . . . Overflow Damage . | . . . Projectiles . | . . . Explosions . | . . . Melee . | . . . Knockbacks . | . . . Impact . | . . . Kinetic . | . . . Secondary . | . . . Self-Inflicted Damage . | . . . Shots . | . . . Rammed 1 | . . 1 Targets Rammed 1 | . . 1 Kicked . | . . . Crushed . | . . . Highest Temperature 237 | . 237 101 Average Temperature 20 | . 23 15 Received Heat Transfer 502 | . 243 259 Siege Activations . | . . . Martial Activations . | . . . Shielding Activations . | . . . Robots Disrupted . | . . . Combat Hostiles . | . . . Robots Corrupted . | . . . Combat Hostiles . | . . . Parts Fried . | . . . Impact Corruptions . | . . . Robots Melted . | . . . Combat Hostiles . | . . . Parts Melted . | . . . Heat Transferred . | . . . Parts Sabotaged . | . . . Parts Stolen . | . . . Parts Stripped . | . . . Power Chain Reactions . | . . . Alert | -11 -10 -10 ------- Run | Yrd Mat Min Maximum Alert Level . | . . . Low Security (%) 100 | 100 100 100 Level 1 . | . . . Level 2 . | . . . Level 3 . | . . . Level 4 . | . . . Level 5 . | . . . High Security . | . . . Max Security . | . . . Peak Influence 120 | . 120 98 Initial 18 | . . 18 Average 59 | . 64 54 Influence Increases 678 | . 481 197 Destroy 0b10 Robot/C 380 | . 260 120 Destroy 0b10 Robot/NC 35 | . 35 . Destroy Leader 98 | . 68 30 Successful Hack 12 | . 12 . Select Force Hacks 60 | . 60 . Disable Machine 15 | . 15 . Destroy Structure 18 | . 1 17 Lose Combat Pursuer 60 | . 30 30 Influence Decreases 648 | . 433 215 Entered New Map 30 | . . 30 Time Decay 553 | . 413 140 Lost Part 65 | . 20 45 Squads Dispatched 4 | . 4 . Investigation 2 | . 2 . Extermination . | . . . Reinforcement 2 | . 2 . Assault . | . . . Garrison . | . . . Intercept . | . . . Searches Triggered . | . . . Construction Impeded . | . . . Haulers Reinforced . | . . . Active Scanning Responses . | . . . Cargo Convoy Interrupts . | . . . Stealth | -11 -10 -10 --------- Run | Yrd Mat Min Distress Signals 1 | . 1 . Communications Jammed . | . . . Distress Signals . | . . . Times Spotted 51 | . 22 29 Peak Tracking Total 20 | . 4 20 Tactical Retreats 5 | . 2 3 Traps | -11 -10 -10 ------- Run | Yrd Mat Min Traps Triggered 1 | . 1 . Indirectly . | . . . Trap Hack Attempts . | . . . Triggered . | . . . Disarmed . | . . . Reprogrammed . | . . . Reused . | . . . Traps Extracted . | . . . Installed . | . . . Triggered . | . . . Machines | -11 -10 -10 ---------- Run | Yrd Mat Min Machines Disabled 1 | . 1 . Max in Single Turn 1 | . 1 . Machines Repaired . | . . . Machines Dismantled . | . . . Machines Sabotaged . | . . . Overloaded Fab Kills . | . . . Hacking | -11 -10 -10 --------- Run | Yrd Mat Min Machines Accessed 8 | . 8 . Terminals 6 | . 6 . Fabricators . | . . . Repair Stations . | . . . Recycling Units 2 | . 2 . Scanalyzers . | . . . Garrison Access . | . . . Total Hacks 22 | . 22 . Successful 8 | . 8 . Failed 14 | . 14 . Catastrophic 2 | . 2 . Database Lockouts . | . . . Manual 21 | . 21 . Terminals 19 | . 19 . Fabricators . | . . . Repair Stations . | . . . Recycling Units 3 | . 3 . Scanalyzers . | . . . Garrison Access . | . . . Terminal Hacks 1 | . 1 . Alert Level 1 | . 1 . Fabricator Hacks . | . . . Repair Station Hacks . | . . . Recycling Unit Hacks . | . . . Scanalyzer . | . . . Garrison Access Hacks . | . . . Unauthorized Hacks 7 | . 7 . Terminals 5 | . 5 . Skim 5 | . 5 . Fabricators . | . . . Repair Stations . | . . . Recycling Units 2 | . 2 . Tunnel 2 | . 2 . Scanalyzers . | . . . Garrison Access . | . . . Data Cores Recovered . | . . . Used . | . . . Hacking Detections 7 | . 7 . Full Trace Events . | . . . Feedback Events . | . . . Feedback Blocked . | . . . Robot Schematics Acquired . | . . . Robots Built . | . . . Authchips . | . . . Time . | . . . Total Robot Build Rating . | . . . Part Schematics Acquired . | . . . Parts Built . | . . . Authchips . | . . . Time . | . . . Total Part Build Rating . | . . . Part Studies Acquired . | . . . Parts Repaired . | . . . Time . | . . . Parts Recycled . | . . . Recycled Matter . | . . . Retrieved Matter . | . . . Retrieved Components . | . . . Parts Scanalyzed . | . . . Part Schematics Acquired . | . . . Parts Damaged . | . . . Bothacking | -11 -10 -10 ------------ Run | Yrd Mat Min Used RIF Installer . | . . . Robots Hacked . | . . . Non-combat . | . . . Combat . | . . . Robot Hacks Applied . | . . . Relay Couplers Released . | . . . Fabnet Peak Effective % . | . . . Robots Rewired . | . . . Allies Hacked . | . . . Hacks Repelled . | . . . Allies | -11 -10 -10 -------- Run | Yrd Mat Min Total Allies . | . . . Largest Group . | . . . Highest-Rated Group . | . . . Highest-Rated Ally . | . . . Total Orders . | . . . Ally Attacks . | . . . Total Damage . | . . . Kills . | . . . Allies Corrupted . | . . . Allies Melted . | . . . Intel | -11 -10 -10 ------- Run | Yrd Mat Min Active Infowar (turns) 1555 | . 1267 288 Optics 1555 | . 1267 288 Robot Analysis Total . | . . . Derelict Logs Recovered . | . . . Drone Launches . | . . . Drone Recoveries . | . . . Exploration | -11 -10 -10 ------------- Run | Yrd Mat Min Turns Passed 1666 | 76 1287 303 Spaces Moved 783 | 44 619 120 Core 3 | 3 . . Treads 780 | 41 619 120 Legs . | . . . Wheels . | . . . Hover . | . . . Flight . | . . . Fastest Speed 50 | 50 160 160 Average Speed 159 | 152 160 162 Slowest Speed 240 | 160 160 240 Overloaded Moves . | . . . Propulsion Burnouts . | . . . Robots Hopped . | . . . Potential Cave-ins . | . . . Cave-ins Triggered . | . . . Exploration Rate (%) 43 | 5 93 32 Regions Visited 2 Branch Regions 1 Pre-discovered Areas 2 | . 2 . Known Exits Taken . | . . . Unknown Exits Taken 2 | 1 1 . Scrap Searched . | . . . Spaces Dug . | . . . Terrain Destroyed 28 | . . 28 Melee . | . . . Projectile . | . . . AOE 28 | . . 28 Terrain Rammed . | . . . Walls Destroyed . | . . . Machines Disabled . | . . . Actions | -11 -10 -10 --------- Run | Yrd Mat Min Total 1041 | 50 813 178 Wait 129 | . 110 19 Move 781 | 43 618 120 Hop . | . . . Pick Up 16 | 1 13 2 Fast Attach 7 | 6 1 . Attach 5 | . 2 3 Detach . | . . . Swap 7 | . 4 3 Drop 3 | . 2 1 Fire 92 | . 63 29 Melee . | . . . Ram . | . . . Kick . | . . . Crush 1 | . . 1 Escape Stasis . | . . . Rewire . | . . . Trap . | . . . Miscellaneous . | . . . Route ------- -11/Scrapyard -10/Materials (discovered 5 exits: *Mat x3 / [*Min] / Sub) -10/Mines (discovered 2 exits: *Mat x2) History --------- Turn | Location | Event 8 | -11/Scrapyard | Discovered new exit (range 16) 77 | -11/Scrapyard | Entered Materials 304 | -10/Materials | Build established: Mutant 759 | -10/Materials | Discovered new exit (range 4) 940 | -10/Materials | Discovered new exit (range 7) 1081 | -10/Materials | Learned 4 Recycling zone layouts 1140 | -10/Materials | Learned location of 1 exit from Recycling 1150 | -10/Materials | Discovered new exit (range 5) 1187 | -10/Materials | Learned location of 2 exits from Subcaves 1226 | -10/Materials | Learned Storage trap positions 1254 | -10/Materials | Loaded intel: 1 repair station location 1343 | -10/Materials | Identified exit to Materials 1343 | -10/Materials | Identified exit to Subcaves 1364 | -10/Materials | Entered Mines 1410 | -10/Mines | Discovered exit to Materials (range 11) 1426 | -10/Mines | Core integrity fell below 50% 1578 | -10/Mines | Discovered exit to Materials (range 11) 1626 | -10/Mines | Assembled infested the area 1664 | -10/Mines | Core integrity fell below 20% 1667 | -10/Mines | Destroyed by D-53 Grenadier with Mini Grenade Launcher Last Messages --------------- 01632_ Lgt. Treads destroyed. 01635_ as-79998 destroyed. 01639_ as-25891 destroyed. 01639_ as-20753 destroyed. 01639_ as-21855 destroyed. 01639_ as-57932 destroyed. 01642_ as-02804 destroyed. 01642_ as-47129 destroyed. 01643_ Ion Engine destroyed. 01645_ as-07818 destroyed. 01646_ as-97488 destroyed. 01648_ as-05484 destroyed. 01648_ as-79251 destroyed. 01652_ Discarded Visual Processing Unit. 01661_ Ion Engine destroyed. 01663_ The unstable cave ceiling collapses. 01663_ Lgt. Treads destroyed. 01665_ Lgt. Armor Plating destroyed. 01665_ D-53 Grenadier destroyed. 01666_ The unstable cave ceiling collapses. Map ----- +----------------------------------------------------+ | | | | | | | | | | | | | | | | | | | | | | | | | | | | | | | ???????????????????????##?????? | | ?????????????????????? #?????? | | ???????#####???????? #?????? | | ??????## ##?????# ##????? | | ?????## ##### ### | | ???### d # | | ??## % % | | ?## ## % | | ?# ## ?? | | ?# ##### ##???? | | ?# @# #????? #????? | | ?# ##??????? ###????? | | ?# #???????? #??????? | | ?## ##?????????? #??????? | | ??### # ##???????????????????? | | ????# ###????????????????????? | | ????# #??????????????????????? | | ????# #??????????????????????? | | ????# #??????????????????????? | | ????# t##?????????????????????? | | ????# #### #???????????????? | | ???## < #???????????????? | | ??## #### #???????????????? | | ??# ##????????????????????? | | ??# ##???#???????????????? | | ??# """ ## #???????????????? | | ??## """ #???????????????? | | ??# """ #???????????????? | | ??# ####???????????????? | | ??# ## #??????????????????? | | ??# #?# ##??????????????????? | | ??# #??###???????????????????? | | ??# #????????????????????????? | | ??# #????????????????????????? | | ??# #????????????????????????? | +----------------------------------------------------+ Best States ------------- Heat Dissipation 25 Energy Generation 10 Energy Capacity 250 Matter Stores 300 Matter Capacity 300 Sight Range 18 Terrain Scan Density 10 Armor Coverage 150 Evasion (%) 40 Recoil Reduction 2 Authchip Count 1 Item Schematics ----------------- None Robot Schematics ------------------ None Fabricated ------------ Nothing Repaired ---------- Nothing Studied --------- None Alien Tech Used ----------------- None Achievements -------------- None Challenges ------------ None Game ------ Seed AssaultLongswordBeamcaster Manual? 0 Play Time 00:08:06 Cumulative 807.9 hours Start 2025.12.23 @ 10:52:58 End 2025.12.23 @ 11:02:52 Sessions 1 Manual Loads 0 Difficulty Rogue Special Mode None Game No. 404 Rogue 404 Adventurer 0 Explorer 0 Win Type - Total 68 Types 44/5/6/4/1/1/3/2/1/1 Lore% 92 Gallery% 85 Achievement% 68 Wizard Run 0 Options --------- Layout 0 ASCII 0 Keyboard 1 Movement Numpad Keybinds 0 Fullscreen 2 Font 18/SmallcapsGlow Map View 76x50 Zoom Use 0% Tactical HUD 1 Map Filters NONE Filters NONE Steam 1 RUN: 521bf421-b333-408d-b700-37c148c8f553